[Event "Titled Tuesday Blitz August 02 Early 2022"]
[White "Aldokhin, Ivan"]
[Black "Tica, Sven"]
[WhiteFideId "24115720"]
[BlackFideId "14526948"]
[WhiteElo "2246"]
[BlackElo "2346"]
[Result "0-1"]
[Round "11"]
[TimeControl "180+1"]
[Date "2022.08.02"]
[WhiteClock "0:00:03"]
[BlackClock "0:00:58"]

1. e4 {[%clk 0:03:00]}  g6 {[%clk 0:03:00]} 2. d4 {[%clk 0:03:00]}  Bg7 {[%clk 0:03:01]} 3. Nc3 {[%clk 0:03:01]}  a6 {[%clk 0:03:01]} 4. Bg5 {[%clk 0:03:01]}  b5 {[%clk 0:03:00]} 5. Nf3 {[%clk 0:02:57]}  Bb7 {[%clk 0:03:00]} 6. Bd3 {[%clk 0:02:57]}  h6 {[%clk 0:02:56]} 7. Be3 {[%clk 0:02:53]}  d6 {[%clk 0:02:54]} 8. Qd2 {[%clk 0:02:53]}  Nd7 {[%clk 0:02:54]} 9. a4 {[%clk 0:02:47]}  b4 {[%clk 0:02:52]} 10. Ne2 {[%clk 0:02:47]}  c5 {[%clk 0:02:52]} 11. c3 {[%clk 0:02:46]}  bxc3 {[%clk 0:02:46]} 12. bxc3 {[%clk 0:02:45]}  Ngf6 {[%clk 0:02:46]} 13. Ng3 {[%clk 0:02:45]}  Ng4 {[%clk 0:02:46]} 14. O-O {[%clk 0:02:18]}  Nxe3 {[%clk 0:02:45]} 15. Qxe3 {[%clk 0:02:18]}  cxd4 {[%clk 0:02:42]} 16. cxd4 {[%clk 0:02:17]}  O-O {[%clk 0:02:41]} 17. Rab1 {[%clk 0:02:06]}  Rb8 {[%clk 0:02:40]} 18. Nh4 {[%clk 0:02:05]}  e5 {[%clk 0:02:39]} 19. Nhf5 {[%clk 0:01:52]}  gxf5 {[%clk 0:02:26]} 20. Nxf5 {[%clk 0:01:44]}  exd4 {[%clk 0:02:26]} 21. Qg3 {[%clk 0:01:36]}  Qf6 {[%clk 0:02:24]} 22. Nxd6 {[%clk 0:00:51]}  Bc6 {[%clk 0:02:01]} 23. Nf5 {[%clk 0:00:50]}  Ne5 {[%clk 0:01:50]} 24. f4 {[%clk 0:00:32]}  Nxd3 {[%clk 0:01:34]} 25. Qxd3 {[%clk 0:00:32]}  Bd7 {[%clk 0:01:32]} 26. Ng3 {[%clk 0:00:24]}  Rxb1 {[%clk 0:01:26]} 27. Qxb1 {[%clk 0:00:22]}  Bxa4 {[%clk 0:01:20]} 28. e5 {[%clk 0:00:22]}  Qc6 {[%clk 0:01:11]} 29. Nf5 {[%clk 0:00:19]}  Qc2 {[%clk 0:01:11]} 30. Ne7+ {[%clk 0:00:15]}  Kh7 {[%clk 0:01:08]} 31. Qb4 {[%clk 0:00:14]}  Bb5 {[%clk 0:01:04]} 32. Ra1 {[%clk 0:00:06]}  Qe4 {[%clk 0:00:59]} 33. Qd2 {[%clk 0:00:04]}  Qe3+ {[%clk 0:00:58]} 34. Qxe3 {[%clk 0:00:03]}  dxe3 {[%clk 0:00:59]} 35. Nf5 {[%clk 0:00:03]}  e2 {[%clk 0:00:59]} 36. Kf2 {[%clk 0:00:04]}  Rd8 {[%clk 0:00:59]} 37. Nd6 {[%clk 0:00:04]}  Rxd6 {[%clk 0:00:59]} 38. Rb1 {[%clk 0:00:03]}  Rd1 {[%clk 0:00:58]} 0-1


[Site "https://www.chess.com"]

[Event "Titled Tuesday Blitz August 02 Early 2022"]
[White "Aradhya, Garg"]
[Black "Andreikin, Dmitry"]
[WhiteFideId "25006746"]
[BlackFideId "4158814"]
[WhiteElo "2203"]
[BlackElo "2736"]
[Result "1/2-1/2"]
[Round "11"]
[TimeControl "180+1"]
[Date "2022.08.02"]
[WhiteClock "0:01:06"]
[BlackClock "0:01:56"]

1. d4 {[%clk 0:03:00]}  Nf6 {[%clk 0:02:56]} 2. c4 {[%clk 0:03:00]}  c6 {[%clk 0:02:57]} 3. Nc3 {[%clk 0:02:56]}  d5 {[%clk 0:02:57]} 4. e3 {[%clk 0:02:57]}  a6 {[%clk 0:02:57]} 5. Nf3 {[%clk 0:02:57]}  Bg4 {[%clk 0:02:58]} 6. Qb3 {[%clk 0:02:55]}  b5 {[%clk 0:02:57]} 7. cxd5 {[%clk 0:02:55]}  Bxf3 {[%clk 0:02:57]} 8. gxf3 {[%clk 0:02:54]}  cxd5 {[%clk 0:02:57]} 9. Bd2 {[%clk 0:02:49]}  e6 {[%clk 0:02:57]} 10. Bd3 {[%clk 0:02:45]}  Nc6 {[%clk 0:02:57]} 11. Nxb5 {[%clk 0:02:42]}  Be7 {[%clk 0:02:51]} 12. Nc3 {[%clk 0:02:39]}  O-O {[%clk 0:02:50]} 13. Qd1 {[%clk 0:02:38]}  e5 {[%clk 0:02:50]} 14. dxe5 {[%clk 0:02:36]}  Nxe5 {[%clk 0:02:51]} 15. Be2 {[%clk 0:02:37]}  d4 {[%clk 0:02:51]} 16. exd4 {[%clk 0:02:36]}  Qxd4 {[%clk 0:02:52]} 17. Be3 {[%clk 0:02:37]}  Qb4 {[%clk 0:02:52]} 18. Qd4 {[%clk 0:02:35]}  Qa5 {[%clk 0:02:31]} 19. Qb6 {[%clk 0:02:28]}  Qxb6 {[%clk 0:02:28]} 20. Bxb6 {[%clk 0:02:28]}  Rab8 {[%clk 0:02:29]} 21. Bc7 {[%clk 0:02:27]}  Rxb2 {[%clk 0:02:20]} 22. Bxe5 {[%clk 0:02:26]}  Bb4 {[%clk 0:02:21]} 23. Kf1 {[%clk 0:02:14]}  Re8 {[%clk 0:02:20]} 24. Bxf6 {[%clk 0:02:11]}  gxf6 {[%clk 0:02:19]} 25. Ne4 {[%clk 0:02:10]}  Kf8 {[%clk 0:02:19]} 26. Bxa6 {[%clk 0:02:04]}  f5 {[%clk 0:02:20]} 27. a3 {[%clk 0:01:46]}  Ba5 {[%clk 0:02:15]} 28. Ng3 {[%clk 0:01:41]}  Bb6 {[%clk 0:02:14]} 29. Be2 {[%clk 0:01:36]}  f4 {[%clk 0:02:10]} 30. Ne4 {[%clk 0:01:35]}  f5 {[%clk 0:02:11]} 31. Nc3 {[%clk 0:01:17]}  Bd4 {[%clk 0:02:11]} 32. Rb1 {[%clk 0:01:16]}  Bxc3 {[%clk 0:01:54]} 33. Rxb2 {[%clk 0:01:15]}  Bxb2 {[%clk 0:01:55]} 34. a4 {[%clk 0:01:15]}  Bc3 {[%clk 0:01:51]} 35. Bd3 {[%clk 0:01:11]}  Re1+ {[%clk 0:01:51]} 36. Kg2 {[%clk 0:01:11]}  Rxh1 {[%clk 0:01:51]} 37. Kxh1 {[%clk 0:01:12]}  Kg7 {[%clk 0:01:48]} 38. Bxf5 {[%clk 0:01:11]}  h5 {[%clk 0:01:47]} 39. Kg2 {[%clk 0:01:11]}  Kf6 {[%clk 0:01:47]} 40. Bc2 {[%clk 0:01:08]}  h4 {[%clk 0:01:46]} 41. Kf1 {[%clk 0:01:07]}  Ke5 {[%clk 0:01:46]} 42. Ke2 {[%clk 0:01:07]}  Kd4 {[%clk 0:01:46]} 43. h3 {[%clk 0:01:07]}  Ba5 {[%clk 0:01:46]} 44. Bg6 {[%clk 0:01:07]}  Kc3 {[%clk 0:01:46]} 45. Be8 {[%clk 0:01:06]}  Bb4 {[%clk 0:01:46]} 46. Bb5 {[%clk 0:01:05]}  Ba5 {[%clk 0:01:47]} 47. Kd1 {[%clk 0:01:05]}  Bb4 {[%clk 0:01:47]} 48. Kc1 {[%clk 0:01:04]}  Ba5 {[%clk 0:01:48]} 49. Kb1 {[%clk 0:01:03]}  Bb4 {[%clk 0:01:48]} 50. Ka2 {[%clk 0:01:03]}  Ba5 {[%clk 0:01:48]} 51. Bd7 {[%clk 0:01:02]}  Bb4 {[%clk 0:01:49]} 52. Bf5 {[%clk 0:01:02]}  Ba5 {[%clk 0:01:50]} 53. Be6 {[%clk 0:01:01]}  Bb4 {[%clk 0:01:50]} 54. a5 {[%clk 0:01:00]}  Bxa5 {[%clk 0:01:51]} 55. Ka3 {[%clk 0:01:00]}  Bb6 {[%clk 0:01:50]} 56. Ka4 {[%clk 0:01:00]}  Bxf2 {[%clk 0:01:50]} 57. Kb5 {[%clk 0:01:01]}  Bg3 {[%clk 0:01:50]} 58. Kc5 {[%clk 0:01:01]}  Kd3 {[%clk 0:01:51]} 59. Bg4 {[%clk 0:01:01]}  Ke3 {[%clk 0:01:52]} 60. Kd5 {[%clk 0:01:02]}  Kf2 {[%clk 0:01:52]} 61. Ke5 {[%clk 0:01:03]}  Kg2 {[%clk 0:01:52]} 62. Kf5 {[%clk 0:01:03]}  Kg1 {[%clk 0:01:53]} 63. Kg5 {[%clk 0:01:04]}  Kg2 {[%clk 0:01:54]} 64. Kf5 {[%clk 0:01:05]}  Kg1 {[%clk 0:01:55]} 65. Kg5 {[%clk 0:01:05]}  Kg2 {[%clk 0:01:56]} 66. Kf5 {[%clk 0:01:06]} 1/2-1/2


[Site "https://www.chess.com"]

[Event "Titled Tuesday Blitz August 02 Early 2022"]
[White "Boros, Denes"]
[Black "Pinheiro, Iung Alicio de O."]
[WhiteFideId "722340"]
[BlackFideId "2104350"]
[WhiteElo "2464"]
[BlackElo "2283"]
[Result "1/2-1/2"]
[Round "11"]
[TimeControl "180+1"]
[Date "2022.08.02"]
[WhiteClock "0:00:24"]
[BlackClock "0:00:15"]

1. e4 {[%clk 0:03:00]}  c5 {[%clk 0:02:59]} 2. Nc3 {[%clk 0:03:01]}  a6 {[%clk 0:02:58]} 3. d4 {[%clk 0:03:00]}  cxd4 {[%clk 0:02:54]} 4. Qxd4 {[%clk 0:03:01]}  Nc6 {[%clk 0:02:47]} 5. Qe3 {[%clk 0:03:01]}  g6 {[%clk 0:02:44]} 6. Bc4 {[%clk 0:02:58]}  Bh6 {[%clk 0:02:35]} 7. Qe2 {[%clk 0:02:46]}  Bg7 {[%clk 0:02:23]} 8. Nf3 {[%clk 0:02:45]}  b5 {[%clk 0:02:21]} 9. Bb3 {[%clk 0:02:42]}  Nh6 {[%clk 0:02:16]} 10. h4 {[%clk 0:02:40]}  Bb7 {[%clk 0:02:05]} 11. h5 {[%clk 0:02:38]}  Rc8 {[%clk 0:01:57]} 12. Bxh6 {[%clk 0:02:11]}  Bxh6 {[%clk 0:01:55]} 13. hxg6 {[%clk 0:02:11]}  hxg6 {[%clk 0:01:56]} 14. Ng5 {[%clk 0:02:11]}  e6 {[%clk 0:01:46]} 15. f4 {[%clk 0:02:09]}  Nd4 {[%clk 0:01:28]} 16. Qd3 {[%clk 0:02:04]}  Bg7 {[%clk 0:01:26]} 17. Rxh8+ {[%clk 0:02:01]}  Bxh8 {[%clk 0:01:27]} 18. O-O-O {[%clk 0:02:01]}  Bf6 {[%clk 0:01:17]} 19. Kb1 {[%clk 0:01:51]}  b4 {[%clk 0:01:10]} 20. Nd5 {[%clk 0:01:21]}  exd5 {[%clk 0:00:59]} 21. e5 {[%clk 0:01:20]}  Bxg5 {[%clk 0:00:59]} 22. Qxd4 {[%clk 0:01:14]}  Be7 {[%clk 0:00:52]} 23. Rh1 {[%clk 0:01:14]}  Qc7 {[%clk 0:00:52]} 24. Rh8+ {[%clk 0:01:05]}  Bf8 {[%clk 0:00:52]} 25. Qxb4 {[%clk 0:01:05]}  Qc5 {[%clk 0:00:49]} 26. Qe1 {[%clk 0:01:00]}  d4 {[%clk 0:00:39]} 27. a3 {[%clk 0:00:52]}  Bd5 {[%clk 0:00:39]} 28. f5 {[%clk 0:00:37]}  Bxb3 {[%clk 0:00:35]} 29. cxb3 {[%clk 0:00:38]}  gxf5 {[%clk 0:00:34]} 30. Ka2 {[%clk 0:00:32]}  d3 {[%clk 0:00:31]} 31. Qd2 {[%clk 0:00:32]}  Qd5 {[%clk 0:00:18]} 32. Rxf8+ {[%clk 0:00:21]}  Kxf8 {[%clk 0:00:18]} 33. Qh6+ {[%clk 0:00:21]}  Ke8 {[%clk 0:00:13]} 34. Qh8+ {[%clk 0:00:21]}  Ke7 {[%clk 0:00:14]} 35. Qf6+ {[%clk 0:00:22]}  Ke8 {[%clk 0:00:14]} 36. Qh8+ {[%clk 0:00:22]}  Ke7 {[%clk 0:00:15]} 37. Qf6+ {[%clk 0:00:23]}  Ke8 {[%clk 0:00:15]} 38. Qh8+ {[%clk 0:00:24]} 1/2-1/2


[Site "https://www.chess.com"]

[Event "Titled Tuesday Blitz August 02 Early 2022"]
[White "Costachi, Mihnea"]
[Black "Lobanov, Sergei"]
[WhiteFideId "1217518"]
[BlackFideId "24183750"]
[WhiteElo "2477"]
[BlackElo "2524"]
[Result "1-0"]
[Round "11"]
[TimeControl "180+1"]
[Date "2022.08.02"]
[WhiteClock "0:00:09"]
[BlackClock "0:00:02"]

1. d4 {[%clk 0:03:00]}  d5 {[%clk 0:02:58]} 2. c4 {[%clk 0:03:00]}  dxc4 {[%clk 0:02:59]} 3. Nf3 {[%clk 0:03:00]}  a6 {[%clk 0:02:58]} 4. a4 {[%clk 0:03:00]}  Nf6 {[%clk 0:02:55]} 5. e3 {[%clk 0:03:00]}  e6 {[%clk 0:02:55]} 6. Bxc4 {[%clk 0:03:00]}  Nbd7 {[%clk 0:02:53]} 7. O-O {[%clk 0:03:01]}  c5 {[%clk 0:02:51]} 8. Nc3 {[%clk 0:02:53]}  cxd4 {[%clk 0:02:49]} 9. Nxd4 {[%clk 0:02:50]}  Qc7 {[%clk 0:02:46]} 10. Be2 {[%clk 0:02:48]}  Be7 {[%clk 0:02:38]} 11. Bd2 {[%clk 0:02:42]}  O-O {[%clk 0:02:38]} 12. Rc1 {[%clk 0:02:43]}  Qb6 {[%clk 0:02:33]} 13. Qc2 {[%clk 0:02:31]}  Ne5 {[%clk 0:02:21]} 14. Ne4 {[%clk 0:02:19]}  Bd7 {[%clk 0:02:07]} 15. a5 {[%clk 0:02:18]}  Qa7 {[%clk 0:02:01]} 16. Nxf6+ {[%clk 0:02:14]}  Bxf6 {[%clk 0:02:01]} 17. Bb4 {[%clk 0:02:09]}  Rfc8 {[%clk 0:01:53]} 18. Bc5 {[%clk 0:02:09]}  Qb8 {[%clk 0:01:53]} 19. Qb3 {[%clk 0:01:55]}  Nc6 {[%clk 0:01:45]} 20. Nxc6 {[%clk 0:01:47]}  Bxc6 {[%clk 0:01:46]} 21. Rfd1 {[%clk 0:01:38]}  Qe5 {[%clk 0:01:46]} 22. Bd4 {[%clk 0:01:04]}  Qxa5 {[%clk 0:01:43]} 23. Bxf6 {[%clk 0:01:03]}  gxf6 {[%clk 0:01:44]} 24. Rc4 {[%clk 0:00:51]}  Rd8 {[%clk 0:01:26]} 25. Rdc1 {[%clk 0:00:43]}  f5 {[%clk 0:01:20]} 26. Bf3 {[%clk 0:00:42]}  Bxf3 {[%clk 0:01:16]} 27. gxf3 {[%clk 0:00:42]}  Rd7 {[%clk 0:01:04]} 28. Qc2 {[%clk 0:00:25]}  Rad8 {[%clk 0:00:59]} 29. Rc8 {[%clk 0:00:25]}  Qe5 {[%clk 0:00:53]} 30. Rxd8+ {[%clk 0:00:23]}  Rxd8 {[%clk 0:00:53]} 31. f4 {[%clk 0:00:24]}  Qd5 {[%clk 0:00:48]} 32. Qc3 {[%clk 0:00:19]}  Qf3 {[%clk 0:00:30]} 33. Qc7 {[%clk 0:00:19]}  Rd1+ {[%clk 0:00:22]} 34. Rxd1 {[%clk 0:00:19]}  Qxd1+ {[%clk 0:00:23]} 35. Kg2 {[%clk 0:00:20]}  Qg4+ {[%clk 0:00:23]} 36. Kf1 {[%clk 0:00:20]}  Qd1+ {[%clk 0:00:24]} 37. Kg2 {[%clk 0:00:21]}  Qd5+ {[%clk 0:00:24]} 38. Kg3 {[%clk 0:00:21]}  h6 {[%clk 0:00:20]} 39. Qc8+ {[%clk 0:00:21]}  Kg7 {[%clk 0:00:20]} 40. Qc3+ {[%clk 0:00:22]}  Kg6 {[%clk 0:00:13]} 41. Qh8 {[%clk 0:00:22]}  Qd1 {[%clk 0:00:06]} 42. Qg8+ {[%clk 0:00:22]}  Kf6 {[%clk 0:00:04]} 43. Qh8+ {[%clk 0:00:22]}  Ke7 {[%clk 0:00:05]} 44. h3 {[%clk 0:00:18]}  Qg1+ {[%clk 0:00:03]} 45. Kf3 {[%clk 0:00:18]}  Qh1+ {[%clk 0:00:03]} 46. Kg3 {[%clk 0:00:19]}  Qg1+ {[%clk 0:00:04]} 47. Kf3 {[%clk 0:00:19]}  Qd1+ {[%clk 0:00:05]} 48. Kg2 {[%clk 0:00:18]}  Qh5 {[%clk 0:00:04]} 49. Qb8 {[%clk 0:00:16]}  Qg6+ {[%clk 0:00:03]} 50. Kh2 {[%clk 0:00:17]}  Qf6 {[%clk 0:00:03]} 51. Qxb7+ {[%clk 0:00:17]}  Kf8 {[%clk 0:00:04]} 52. Qb8+ {[%clk 0:00:16]}  Kg7 {[%clk 0:00:05]} 53. Qb3 {[%clk 0:00:17]}  a5 {[%clk 0:00:04]} 54. Qb5 {[%clk 0:00:16]}  h5 {[%clk 0:00:05]} 55. Kg3 {[%clk 0:00:15]}  h4+ {[%clk 0:00:05]} 56. Kh2 {[%clk 0:00:14]}  Qd8 {[%clk 0:00:05]} 57. Qe5+ {[%clk 0:00:14]}  Kg6 {[%clk 0:00:04]} 58. Qc3 {[%clk 0:00:13]}  Qd5 {[%clk 0:00:04]} 59. Qh8 {[%clk 0:00:12]}  Qd2 {[%clk 0:00:03]} 60. Qxh4 {[%clk 0:00:12]}  Qxb2 {[%clk 0:00:03]} 61. Qg5+ {[%clk 0:00:11]}  Kh7 {[%clk 0:00:04]} 62. Qh5+ {[%clk 0:00:11]}  Kg8 {[%clk 0:00:04]} 63. Qg5+ {[%clk 0:00:12]}  Kf8 {[%clk 0:00:01]} 64. Qd8+ {[%clk 0:00:12]}  Kg7 {[%clk 0:00:01]} 65. Kg3 {[%clk 0:00:12]}  Kh7 {[%clk 0:00:01]} 66. Qxa5 {[%clk 0:00:11]}  Qg7+ {[%clk 0:00:02]} 67. Kf3 {[%clk 0:00:12]}  Qh6 {[%clk 0:00:03]} 68. Kg2 {[%clk 0:00:11]}  Qg6+ {[%clk 0:00:03]} 69. Kh2 {[%clk 0:00:11]}  Qh5 {[%clk 0:00:04]} 70. Qa8 {[%clk 0:00:10]}  Qe2 {[%clk 0:00:04]} 71. Qg2 {[%clk 0:00:11]}  Kh6 {[%clk 0:00:04]} 72. Qg5+ {[%clk 0:00:11]}  Kh7 {[%clk 0:00:05]} 73. Qh4+ {[%clk 0:00:12]}  Kg7 {[%clk 0:00:05]} 74. Qg3+ {[%clk 0:00:12]}  Kf8 {[%clk 0:00:05]} 75. Kg2 {[%clk 0:00:13]}  Qd3 {[%clk 0:00:05]} 76. Qh4 {[%clk 0:00:13]}  Qd5+ {[%clk 0:00:05]} 77. Kh2 {[%clk 0:00:13]}  Qd1 {[%clk 0:00:06]} 78. Qh8+ {[%clk 0:00:13]}  Ke7 {[%clk 0:00:07]} 79. Qh4+ {[%clk 0:00:12]}  Ke8 {[%clk 0:00:07]} 80. Qg3 {[%clk 0:00:13]}  Kf8 {[%clk 0:00:06]} 81. h4 {[%clk 0:00:13]}  Qh5 {[%clk 0:00:06]} 82. Qg5 {[%clk 0:00:12]}  Qf3 {[%clk 0:00:06]} 83. Qg3 {[%clk 0:00:13]}  Qh5 {[%clk 0:00:06]} 84. Kg2 {[%clk 0:00:13]}  Qd1 {[%clk 0:00:06]} 85. Qg5 {[%clk 0:00:13]}  Qa1 {[%clk 0:00:03]} 86. Qh6+ {[%clk 0:00:12]}  Qg7+ {[%clk 0:00:02]} 87. Qg5 {[%clk 0:00:09]}  f6 {[%clk 0:00:02]} 88. Qg3 {[%clk 0:00:09]}  Kf7 {[%clk 0:00:02]} 89. Kh3 {[%clk 0:00:09]} 1-0


[Site "https://www.chess.com"]

[Event "Titled Tuesday Blitz August 02 Early 2022"]
[White "Harsha Bharathakoti"]
[Black "Abdrlauf, Elham"]
[WhiteFideId "5078776"]
[BlackFideId "1533533"]
[WhiteElo "2575"]
[BlackElo "2429"]
[Result "1-0"]
[Round "11"]
[TimeControl "180+1"]
[Date "2022.08.02"]
[WhiteClock "0:00:07"]
[BlackClock "0:00:08"]

1. Nf3 {[%clk 0:03:00]}  d5 {[%clk 0:02:59]} 2. b3 {[%clk 0:03:00]}  Nf6 {[%clk 0:02:56]} 3. Bb2 {[%clk 0:02:59]}  e6 {[%clk 0:02:56]} 4. c4 {[%clk 0:02:57]}  Be7 {[%clk 0:02:55]} 5. e3 {[%clk 0:02:56]}  Nbd7 {[%clk 0:02:55]} 6. Nc3 {[%clk 0:02:56]}  c6 {[%clk 0:02:55]} 7. d4 {[%clk 0:02:52]}  O-O {[%clk 0:02:53]} 8. Bd3 {[%clk 0:02:52]}  b6 {[%clk 0:02:54]} 9. O-O {[%clk 0:02:49]}  Bb7 {[%clk 0:02:52]} 10. Qe2 {[%clk 0:02:47]}  Re8 {[%clk 0:02:49]} 11. Rfd1 {[%clk 0:02:46]}  Bb4 {[%clk 0:02:46]} 12. a3 {[%clk 0:02:45]}  Bxc3 {[%clk 0:02:45]} 13. Bxc3 {[%clk 0:02:46]}  Rc8 {[%clk 0:02:45]} 14. Ne5 {[%clk 0:02:30]}  Ne4 {[%clk 0:02:27]} 15. Bxe4 {[%clk 0:02:16]}  dxe4 {[%clk 0:02:28]} 16. Qg4 {[%clk 0:02:07]}  f5 {[%clk 0:02:18]} 17. Qg3 {[%clk 0:02:02]}  Nf6 {[%clk 0:02:18]} 18. Rd2 {[%clk 0:01:50]}  Qe7 {[%clk 0:02:18]} 19. a4 {[%clk 0:01:49]}  a5 {[%clk 0:02:09]} 20. Qg5 {[%clk 0:01:41]}  h6 {[%clk 0:01:42]} 21. Qg6 {[%clk 0:01:40]}  Nh7 {[%clk 0:01:43]} 22. c5 {[%clk 0:01:34]}  Nf8 {[%clk 0:01:40]} 23. Qg3 {[%clk 0:01:33]}  bxc5 {[%clk 0:01:33]} 24. dxc5 {[%clk 0:01:33]}  Qxc5 {[%clk 0:01:24]} 25. Nc4 {[%clk 0:01:21]}  g5 {[%clk 0:00:58]} 26. h4 {[%clk 0:01:06]}  Nh7 {[%clk 0:00:32]} 27. Rd7 {[%clk 0:00:48]}  Re7 {[%clk 0:00:26]} 28. Rxe7 {[%clk 0:00:21]}  Qxe7 {[%clk 0:00:27]} 29. Qe5 {[%clk 0:00:22]}  Nf8 {[%clk 0:00:19]} 30. Qh8+ {[%clk 0:00:20]}  Kf7 {[%clk 0:00:20]} 31. Rd1 {[%clk 0:00:18]}  Rd8 {[%clk 0:00:14]} 32. Qg7+ {[%clk 0:00:08]}  Ke8 {[%clk 0:00:13]} 33. Qxe7+ {[%clk 0:00:03]}  Kxe7 {[%clk 0:00:14]} 34. Bf6+ {[%clk 0:00:04]}  Kxf6 {[%clk 0:00:14]} 35. Rxd8 {[%clk 0:00:05]}  Ng6 {[%clk 0:00:12]} 36. hxg5+ {[%clk 0:00:05]}  hxg5 {[%clk 0:00:13]} 37. Nxa5 {[%clk 0:00:04]}  Ba6 {[%clk 0:00:13]} 38. Nxc6 {[%clk 0:00:05]}  f4 {[%clk 0:00:13]} 39. b4 {[%clk 0:00:05]}  Bc4 {[%clk 0:00:12]} 40. b5 {[%clk 0:00:05]}  Bd5 {[%clk 0:00:11]} 41. Rxd5 {[%clk 0:00:05]}  exd5 {[%clk 0:00:12]} 42. b6 {[%clk 0:00:06]}  fxe3 {[%clk 0:00:07]} 43. fxe3 {[%clk 0:00:06]}  d4 {[%clk 0:00:08]} 44. exd4 {[%clk 0:00:05]}  Nf4 {[%clk 0:00:07]} 45. b7 {[%clk 0:00:06]}  e3 {[%clk 0:00:07]} 46. b8=Q {[%clk 0:00:06]}  e2 {[%clk 0:00:08]} 47. Qe5+ {[%clk 0:00:07]}  Kg6 {[%clk 0:00:09]} 48. g3 {[%clk 0:00:07]}  e1=Q+ {[%clk 0:00:08]} 49. Qxe1 {[%clk 0:00:07]} 1-0


[Site "https://www.chess.com"]

[Event "Titled Tuesday Blitz August 02 Early 2022"]
[White "Ianov, Viktor"]
[Black "Harsh Suresh"]
[WhiteFideId "14102730"]
[BlackFideId "45018464"]
[WhiteElo "2152"]
[BlackElo "2059"]
[Result "1-0"]
[Round "11"]
[TimeControl "180+1"]
[Date "2022.08.02"]
[WhiteClock "0:01:00"]
[BlackClock "0:00:04"]

1. Nf3 {[%clk 0:03:00]}  Nf6 {[%clk 0:03:00]} 2. g3 {[%clk 0:03:00]}  b5 {[%clk 0:02:56]} 3. Bg2 {[%clk 0:02:59]}  Bb7 {[%clk 0:02:56]} 4. Na3 {[%clk 0:02:59]}  a6 {[%clk 0:02:55]} 5. c4 {[%clk 0:02:59]}  b4 {[%clk 0:02:55]} 6. Nc2 {[%clk 0:02:58]}  a5 {[%clk 0:02:56]} 7. b3 {[%clk 0:02:58]}  e6 {[%clk 0:02:56]} 8. a3 {[%clk 0:02:58]}  Na6 {[%clk 0:02:52]} 9. axb4 {[%clk 0:02:57]}  axb4 {[%clk 0:02:52]} 10. Bb2 {[%clk 0:02:57]}  Be7 {[%clk 0:02:52]} 11. O-O {[%clk 0:02:56]}  O-O {[%clk 0:02:52]} 12. d4 {[%clk 0:02:56]}  c5 {[%clk 0:02:43]} 13. d5 {[%clk 0:02:54]}  exd5 {[%clk 0:02:43]} 14. Nh4 {[%clk 0:02:54]}  Nc7 {[%clk 0:02:42]} 15. Ne3 {[%clk 0:02:48]}  Rxa1 {[%clk 0:02:32]} 16. Bxa1 {[%clk 0:02:47]}  d4 {[%clk 0:02:24]} 17. Bxb7 {[%clk 0:02:44]}  dxe3 {[%clk 0:02:24]} 18. fxe3 {[%clk 0:02:40]}  Ng4 {[%clk 0:02:24]} 19. Nf5 {[%clk 0:02:38]}  Bf6 {[%clk 0:02:24]} 20. h3 {[%clk 0:02:32]}  Bxa1 {[%clk 0:01:40]} 21. Qxa1 {[%clk 0:02:30]}  Nf6 {[%clk 0:01:40]} 22. g4 {[%clk 0:02:21]}  Ne6 {[%clk 0:01:38]} 23. Bd5 {[%clk 0:02:14]}  Qc7 {[%clk 0:01:08]} 24. Kg2 {[%clk 0:02:06]}  Qd8 {[%clk 0:00:22]} 25. Qe5 {[%clk 0:01:57]}  Re8 {[%clk 0:00:19]} 26. Qd6 {[%clk 0:01:46]}  Ng5 {[%clk 0:00:17]} 27. Qxc5 {[%clk 0:01:37]}  Nge4 {[%clk 0:00:16]} 28. Qxb4 {[%clk 0:01:30]}  Qc7 {[%clk 0:00:10]} 29. Rf4 {[%clk 0:01:28]}  Nxd5 {[%clk 0:00:09]} 30. cxd5 {[%clk 0:01:26]}  Nf6 {[%clk 0:00:10]} 31. d6 {[%clk 0:01:23]}  Qc6+ {[%clk 0:00:09]} 32. Kf2 {[%clk 0:01:20]}  Qh1 {[%clk 0:00:07]} 33. Ne7+ {[%clk 0:01:17]}  Kf8 {[%clk 0:00:04]} 34. g5 {[%clk 0:01:14]}  Nh5 {[%clk 0:00:02]} 35. Rf3 {[%clk 0:01:10]}  Qh2+ {[%clk 0:00:02]} 36. Ke1 {[%clk 0:01:09]}  Ng3 {[%clk 0:00:02]} 37. Qc4 {[%clk 0:01:05]}  Qg1+ {[%clk 0:00:03]} 38. Kd2 {[%clk 0:01:04]}  Nf1+ {[%clk 0:00:03]} 39. Kd3 {[%clk 0:01:01]}  f6 {[%clk 0:00:03]} 40. gxf6 {[%clk 0:01:00]}  g6 {[%clk 0:00:04]} 41. Qg8# {[%clk 0:01:00]} 1-0


[Site "https://www.chess.com"]

[Event "Titled Tuesday Blitz August 02 Early 2022"]
[White "Jakubowski, Krzysztof"]
[Black "Demchenko, Anton"]
[WhiteFideId "1112848"]
[BlackFideId "4160258"]
[WhiteElo "2365"]
[BlackElo "2539"]
[Result "0-1"]
[Round "11"]
[TimeControl "180+1"]
[Date "2022.08.02"]
[WhiteClock "0:00:03"]
[BlackClock "0:00:13"]

1. e4 {[%clk 0:03:00]}  e5 {[%clk 0:02:58]} 2. Nf3 {[%clk 0:02:59]}  Nc6 {[%clk 0:02:58]} 3. Bc4 {[%clk 0:02:59]}  Nf6 {[%clk 0:02:58]} 4. d3 {[%clk 0:02:59]}  h6 {[%clk 0:02:57]} 5. O-O {[%clk 0:02:58]}  d6 {[%clk 0:02:56]} 6. a4 {[%clk 0:02:55]}  g6 {[%clk 0:02:56]} 7. Re1 {[%clk 0:02:54]}  Bg7 {[%clk 0:02:56]} 8. c3 {[%clk 0:02:54]}  O-O {[%clk 0:02:56]} 9. a5 {[%clk 0:02:54]}  a6 {[%clk 0:02:56]} 10. b4 {[%clk 0:02:51]}  Be6 {[%clk 0:02:52]} 11. Qb3 {[%clk 0:02:38]}  Bxc4 {[%clk 0:02:45]} 12. Qxc4 {[%clk 0:02:36]}  d5 {[%clk 0:02:43]} 13. exd5 {[%clk 0:02:31]}  Nxd5 {[%clk 0:02:41]} 14. Ra2 {[%clk 0:02:21]}  Kh7 {[%clk 0:02:32]} 15. Rae2 {[%clk 0:02:19]}  f5 {[%clk 0:02:18]} 16. h4 {[%clk 0:02:08]}  Qd7 {[%clk 0:01:50]} 17. Nxe5 {[%clk 0:01:46]}  Nxe5 {[%clk 0:01:50]} 18. Rxe5 {[%clk 0:01:45]}  Bxe5 {[%clk 0:01:49]} 19. Rxe5 {[%clk 0:01:46]}  c6 {[%clk 0:01:44]} 20. d4 {[%clk 0:01:22]}  Rae8 {[%clk 0:01:42]} 21. f4 {[%clk 0:01:20]}  Nf6 {[%clk 0:01:38]} 22. Nd2 {[%clk 0:01:16]}  Ng4 {[%clk 0:01:36]} 23. Nf3 {[%clk 0:01:10]}  Nxe5 {[%clk 0:01:34]} 24. fxe5 {[%clk 0:01:10]}  Qd5 {[%clk 0:01:31]} 25. Qe2 {[%clk 0:01:03]}  f4 {[%clk 0:01:26]} 26. Qc2 {[%clk 0:00:57]}  Qe6 {[%clk 0:00:55]} 27. Kf2 {[%clk 0:00:30]}  Qg4 {[%clk 0:00:50]} 28. c4 {[%clk 0:00:26]}  Rd8 {[%clk 0:00:35]} 29. Bb2 {[%clk 0:00:22]}  Qf5 {[%clk 0:00:30]} 30. Qxf5 {[%clk 0:00:16]}  Rxf5 {[%clk 0:00:29]} 31. Ke2 {[%clk 0:00:16]}  g5 {[%clk 0:00:27]} 32. hxg5 {[%clk 0:00:16]}  hxg5 {[%clk 0:00:28]} 33. Nh2 {[%clk 0:00:16]}  Kg6 {[%clk 0:00:26]} 34. Kf3 {[%clk 0:00:15]}  Rff8 {[%clk 0:00:21]} 35. Ng4 {[%clk 0:00:14]}  Rh8 {[%clk 0:00:17]} 36. Ke4 {[%clk 0:00:14]}  Rh1 {[%clk 0:00:16]} 37. e6 {[%clk 0:00:12]}  Re1+ {[%clk 0:00:16]} 38. Kf3 {[%clk 0:00:10]}  Rxe6 {[%clk 0:00:15]} 39. Ne5+ {[%clk 0:00:05]}  Kf5 {[%clk 0:00:15]} 40. g4+ {[%clk 0:00:03]}  fxg3 {[%clk 0:00:15]} 41. Ng4 {[%clk 0:00:03]}  g2 {[%clk 0:00:13]} 0-1


[Site "https://www.chess.com"]